bitfinex-derivatives/quotes_BTCF0:USTF0_20260113
["timestamp","ask_amount","ask_price","bid_price","bid_amount"]
[1768315101440,9.179e-05,92739.0,92715.0,0.10619742]
[1768315101641,9.179e-05,92739.0,92722.0,0.010795]
[1768315101840,9.179e-05,92739.0,92715.0,0.09540142]
[1768315102041,0.09712,92761.0,92739.0,0.09540142]
[1768315102250,0.09712,92760.0,92741.0,0.09540142]
[1768315102635,0.09712,92760.0,92720.0,0.14511188]
[1768315102636,0.14511188,92751.0,92724.0,0.00946948]
[1768315102946,0.14511188,92751.0,92724.0,0.010795]
[1768315103149,0.24223188,92760.0,92727.0,0.10619642]
[1768315103452,0.010791,92757.0,92727.0,0.09540142]
[1768315103753,0.09712,92760.0,92711.0,0.09712]
[1768315103754,0.010795,92725.0,92711.0,0.09712]
[1768315103948,0.09712,92736.0,92709.0,0.09712]
[1768315104143,0.09712,92736.0,92702.0,0.010797]
[1768315104336,0.010796,92716.0,92698.0,0.00946948]
[1768315104542,0.09537873,92735.0,92695.0,0.09712]
[1768315104543,0.010795,92720.0,92695.0,0.09712]
[1768315104741,0.010795,92720.0,92686.0,0.00946948]
[1768315104742,0.09712,92724.0,92696.0,0.09712]
[1768315104942,0.09712,92723.0,92706.0,0.010797]
[1768315105141,0.09712,92723.0,92695.0,0.10658948]
[1768315105142,0.09712,92723.0,92702.0,0.010798]
[1768315105342,0.09712,92723.0,92698.0,0.010798]
[1768315105844,0.09712,92723.0,92694.0,0.09540142]
[1768315105845,0.010796,92718.0,92694.0,0.09540142]
[1768315106046,0.010797,92711.0,92694.0,0.09540142]
[1768315106346,0.010796,92714.0,92687.0,0.010799]
[1768315106652,0.09537873,92722.0,92686.0,0.09712]
[1768315106851,0.09537873,92718.0,92684.0,0.09540142]
[1768315107054,0.09712,92723.0,92688.0,0.09540142]
[1768315107349,0.010796,92719.0,92689.0,0.010799]
[1768315107546,0.09537873,92719.0,92688.0,0.010799]
[1768315107746,0.09537873,92717.0,92681.0,0.09712]
[1768315107945,0.09712,92723.0,92686.0,0.09540142]
[1768315108146,0.09537873,92723.0,92686.0,0.10620042]
[1768315108452,0.09537873,92721.0,92688.0,0.010799]
[1768315108647,0.09537873,92719.0,92697.0,0.010798]
[1768315108854,0.09712,92718.0,92686.0,0.09540142]
[1768315109155,0.19249873,92718.0,92699.0,0.010798]
[1768315109355,0.19249873,92718.0,92703.0,0.010797]
[1768315109540,0.09712,92717.0,92714.0,0.010796]
[1768315109745,0.09712,92717.0,92694.0,0.010798]
[1768315109746,0.09712,92737.0,92716.0,0.09540142]
[1768315110059,0.09712,92744.0,92722.0,0.09540142]
[1768315110248,0.010789,92772.0,92733.0,0.09540142]
[1768315110449,0.00825528,92778.0,92729.0,0.010794]
[1768315110450,0.09712,92771.0,92747.0,0.010792]
[1768315110645,0.00825528,92778.0,92740.0,0.010793]
[1768315110851,0.010789,92776.0,92749.0,0.010792]
[1768315111047,0.09712,92777.0,92752.0,0.010792]
[1768315111551,0.09712,92777.0,92735.0,0.09712]
[1768315111552,0.09537873,92773.0,92735.0,0.09712]
[1768315111744,0.09712,92777.0,92735.0,0.09712]
[1768315111745,0.01079,92768.0,92735.0,0.09712]
[1768315111940,0.01079,92765.0,92732.0,0.09540142]
[1768315112140,0.010791,92761.0,92734.0,0.09540142]
[1768315112352,0.09712,92764.0,92743.0,0.010793]
[1768315112560,0.09712,92764.0,92746.0,0.010792]
[1768315112848,0.09712,92764.0,92743.0,0.010793]
[1768315113252,0.09712,92764.0,92734.0,0.09540142]
[1768315113453,0.09712,92764.0,92742.0,0.010793]
[1768315113663,0.09712,92764.0,92738.0,0.09540142]
[1768315113866,0.09712,92767.0,92743.0,0.09540142]
[1768315114170,0.01079,92767.0,92743.0,0.09540142]
[1768315114466,0.01079,92769.0,92743.0,0.09540142]
[1768315114670,0.09864547,92766.0,92733.0,0.10619542]
[1768315114867,0.09864547,92766.0,92733.0,0.09540142]
[1768315115170,0.09864547,92766.0,92680.0,0.34464169]
[1768315115171,0.010795,92724.0,92695.0,0.00973846]
[1768315115358,0.09712,92723.0,92694.0,0.08684953]
[1768315115557,0.10944047,92721.0,92698.0,0.010798]
[1768315115862,0.010797,92707.0,92687.0,0.09712]
[1768315116057,0.09712,92708.0,92686.0,0.010799]
[1768315116371,0.09712,92708.0,92678.0,0.09712]
[1768315116372,0.010797,92704.0,92684.0,0.0108]
[1768315116571,0.09712,92708.0,92694.0,0.010798]
[1768315116766,0.09864547,92718.0,92697.0,0.010798]
[1768315116960,0.09712,92717.0,92683.0,0.09001913]
[1768315117165,0.19576547,92717.0,92692.0,0.010799]
[1768315117463,0.09864547,92717.0,92684.0,0.0108]
[1768315117664,0.09720051,92716.0,92690.0,0.09001913]
[1768315117864,0.09712,92715.0,92691.0,0.010799]
[1768315118073,0.09864547,92714.0,92691.0,0.010799]
[1768315118266,0.09864547,92714.0,92678.0,0.17521964]
[1768315118465,0.09864547,92714.0,92693.0,0.010799]
[1768315118775,0.09864547,92714.0,92691.0,0.010799]
[1768315118968,0.09864547,92714.0,92686.0,0.010799]
[1768315118969,0.010796,92713.0,92686.0,0.010799]
[1768315119268,0.09864547,92714.0,92655.0,0.09001913]
[1768315119269,0.010799,92693.0,92655.0,0.09001913]
[1768315119466,0.010799,92693.0,92648.0,0.02054246]
[1768315119467,0.010801,92669.0,92648.0,0.00973846]
[1768315119667,0.010801,92669.0,92645.0,0.09712]
[1768315119668,8.051e-05,92668.0,92645.0,0.09712]
[1768315120066,8.051e-05,92668.0,92649.0,0.09015655]
[1768315120262,0.09716,92680.0,92652.0,0.00973846]
[1768315120460,0.19580547,92679.0,92649.0,0.00013742]
[1768315120660,0.00942935,92698.0,92649.0,0.00013742]
[1768315120661,0.09864547,92693.0,92649.0,0.09015655]
[1768315120865,0.09864547,92691.0,92651.0,0.09001913]
[1768315121065,0.10807482,92689.0,92649.0,0.00013742]
[1768315121376,0.10807482,92689.0,92650.0,0.010804]
[1768315121377,0.09864547,92681.0,92650.0,0.010804]
[1768315121570,0.19580547,92680.0,92657.0,0.010803]
[1768315121769,0.09716,92679.0,92664.0,0.010802]
[1768315122075,0.09716,92679.0,92665.0,0.010802]
[1768315122275,0.09716,92679.0,92652.0,0.010803]
[1768315122473,0.09864547,92691.0,92657.0,0.09975759]
[1768315122676,0.19580547,92690.0,92665.0,0.010802]
[1768315122971,0.19580547,92689.0,92668.0,0.010801]
[1768315123170,0.09864547,92687.0,92656.0,0.010803]
[1768315123371,0.09864547,92683.0,92658.0,0.010803]
[1768315123677,0.09864547,92678.0,92652.0,0.010803]
[1768315123866,0.09864547,92678.0,92651.0,0.010803]
[1768315124068,0.09864547,92676.0,92651.0,0.010803]
[1768315124267,0.09716,92675.0,92649.0,0.00013742]
[1768315124477,0.09864547,92674.0,92649.0,0.00013742]
[1768315124774,0.09864547,92674.0,92623.0,0.20556]
[1768315124775,0.00942935,92671.0,92624.0,0.09001913]
[1768315124979,0.00942935,92671.0,92627.0,0.010806]
[1768315124980,0.010803,92656.0,92627.0,0.010806]
[1768315125177,0.09716,92655.0,92627.0,0.010806]
[1768315125474,0.09864547,92654.0,92634.0,0.010805]
[1768315125868,0.09864547,92652.0,92637.0,0.010805]
[1768315126063,0.09864547,92652.0,92614.0,0.09001913]
[1768315126267,8.106e-05,92653.0,92613.0,0.00539881]
[1768315126268,0.09864547,92635.0,92613.0,0.00539881]
[1768315126469,0.09864547,92633.0,92614.0,0.010808]
[1768315126877,0.09864547,92633.0,92613.0,0.00539881]
[1768315127785,0.09864547,92633.0,92585.0,0.06379646]
[1768315127786,0.10807482,92631.0,92602.0,0.09716]
[1768315127971,0.10807482,92631.0,92604.0,0.010809]
[1768315128175,0.09864547,92631.0,92606.0,0.010809]
[1768315128374,0.09864547,92631.0,92607.0,0.0972]
[1768315128574,0.09864547,92631.0,92606.0,0.010809]
[1768315128882,0.09864547,92629.0,92597.0,0.09001913]
[1768315129176,0.09864547,92629.0,92585.0,0.00973846]
[1768315129177,0.09864547,92629.0,92598.0,0.0972]
[1768315130077,1.5,92630.0,92601.0,0.09001913]
[1768315130275,9.31e-05,92634.0,92626.0,0.010806]
[1768315130584,0.10944947,92649.0,92623.0,0.010807]
[1768315130780,0.09864547,92649.0,92623.0,0.010807]
[1768315131077,0.0972,92650.0,92620.0,0.0972]
[1768315131078,0.09864547,92645.0,92620.0,0.0972]
[1768315131275,0.09864547,92645.0,92617.0,0.010807]
[1768315131276,0.09864547,92643.0,92617.0,0.010807]
[1768315131482,0.09864547,92643.0,92604.0,0.00973846]
[1768315131483,0.09864547,92641.0,92622.0,0.010807]
[1768315131672,4.432e-05,92642.0,92627.0,0.010806]
[1768315131871,4.432e-05,92642.0,92615.0,0.09001913]
[1768315131872,4.432e-05,92642.0,92626.0,0.010806]
[1768315132077,4.432e-05,92642.0,92625.0,0.0972]
[1768315132269,0.0972,92659.0,92633.0,0.010806]
[1768315132480,0.10944847,92658.0,92629.0,0.010806]
[1768315132679,0.09864547,92656.0,92632.0,0.010806]
[1768315133079,0.10807482,92667.0,92626.0,0.09001913]
[1768315133379,0.09864547,92667.0,92635.0,0.010805]
[1768315133682,0.0972,92669.0,92636.0,0.0972]
[1768315133683,0.09864547,92660.0,92636.0,0.0972]
[1768315133978,0.09864547,92660.0,92634.0,0.010805]
[1768315134183,0.09864547,92660.0,92619.0,0.09001913]
[1768315134184,0.09864547,92658.0,92636.0,0.010805]
[1768315134386,0.09864547,92658.0,92637.0,0.0972]
[1768315134573,1.5,92666.0,92619.0,0.10082613]
[1768315134574,1.5,92666.0,92645.0,0.010804]
[1768315134772,1.5,92666.0,92639.0,0.0972]
[1768315134968,0.09864547,92665.0,92628.0,0.00973846]
[1768315135174,0.09864547,92659.0,92620.0,0.09001913]
[1768315135376,0.09864547,92659.0,92621.0,0.0972]
[1768315135689,0.09864547,92657.0,92631.0,0.010806]
[1768315135876,0.09864547,92657.0,92623.0,0.09975759]
[1768315136072,1.5,92666.0,92643.0,0.010804]
[1768315136276,1.510802,92666.0,92639.0,0.0972]
[1768315136477,1.5,92666.0,92648.0,0.010804]
[1768315136786,1.5,92666.0,92623.0,0.02054546]
[1768315136787,1.5,92666.0,92644.0,0.0972]
[1768315137084,0.0972,92676.0,92645.0,0.18721913]
[1768315137382,1.5,92675.0,92661.0,0.010802]
[1768315137587,1.5,92675.0,92658.0,0.09724]
[1768315138088,1.59864547,92675.0,92658.0,0.09724]
[1768315138388,1.59864547,92675.0,92657.0,0.09724]
[1768315138971,0.09864547,92674.0,92657.0,0.09724]
[1768315139573,0.09864547,92674.0,92657.0,0.08024]
[1768315140585,0.09864547,92674.0,92653.0,0.010803]
[1768315140888,0.09864547,92674.0,92654.0,0.0972]
[1768315141086,0.09864547,92674.0,92650.0,0.010804]
[1768315141087,0.09864547,92674.0,92655.0,0.0972]
[1768315141287,1.5,92675.0,92655.0,0.0972]
[1768315141679,1.5,92675.0,92664.0,0.010802]
[1768315141981,0.00942935,92693.0,92669.0,0.010801]
[1768315142176,0.0972,92697.0,92650.0,0.010804]
[1768315142177,0.0972,92697.0,92673.0,0.010801]
[1768315142376,0.0972,92697.0,92671.0,0.0972]
[1768315142684,0.38892,92723.0,92671.0,0.0972]
[1768315142685,0.00942935,92715.0,92678.0,0.09001913]
[1768315142878,0.010792,92751.0,92687.0,0.00973846]
[1768315142879,0.0972,92728.0,92687.0,0.00973846]
[1768315143083,1.5,92735.0,92693.0,0.09001913]
[1768315143084,0.010794,92730.0,92693.0,0.09001913]
[1768315143278,0.0972,92731.0,92693.0,0.09001913]
[1768315143279,0.19584547,92731.0,92694.0,0.0972]
[1768315143485,0.09864547,92730.0,92694.0,0.0972]
[1768315143676,0.09864547,92722.0,92686.0,0.010799]
[1768315143882,0.09864547,92713.0,92687.0,0.107999]
[1768315144081,0.09864547,92713.0,92690.0,0.010799]
[1768315144389,0.09864547,92713.0,92683.0,0.09001913]
[1768315144390,0.09864547,92713.0,92685.0,0.010799]
[1768315144689,0.09864547,92713.0,92680.0,0.0108]
[1768315144885,0.09864547,92713.0,92673.0,0.09526735]
[1768315144886,0.09876135,92711.0,92681.0,0.0972]
[1768315145079,0.09876135,92722.0,92696.0,0.010798]
[1768315145284,0.09876135,92722.0,92692.0,0.0972]
[1768315145483,0.09876135,92734.0,92699.0,0.09526735]
[1768315145681,0.09876135,92730.0,92699.0,0.09526735]
[1768315145884,0.09876135,92724.0,92697.0,0.010798]
[1768315146094,0.09876135,92724.0,92687.0,0.10501065]
[1768315146095,0.10955635,92723.0,92698.0,0.0972]
[1768315146392,0.0972,92731.0,92703.0,0.010797]
[1768315146579,0.0972,92731.0,92704.0,0.0972]
[1768315146783,0.09876135,92734.0,92704.0,0.0972]
[1768315146985,0.0972,92738.0,92706.0,0.09526735]
[1768315147182,0.010794,92736.0,92706.0,0.09526735]
[1768315147489,0.0972,92738.0,92706.0,0.09526735]
[1768315147692,0.19596135,92745.0,92713.0,0.010796]
[1768315147993,0.010793,92741.0,92706.0,0.09526735]
[1768315148193,0.20675435,92745.0,92714.0,0.010796]
[1768315148496,0.20675435,92745.0,92715.0,0.0972]
[1768315148684,0.09876135,92745.0,92715.0,0.0972]
[1768315148879,0.09876135,92745.0,92717.0,0.010796]
[1768315149080,0.09876135,92745.0,92719.0,0.010796]
[1768315149283,0.09876135,92745.0,92715.0,0.0972]
[1768315149489,0.09876135,92745.0,92715.0,0.107996]
[1768315149683,0.09876135,92745.0,92715.0,0.0972]
[1768315149893,0.09876135,92745.0,92717.0,0.010796]
[1768315150087,0.0972,92751.0,92718.0,0.09526735]
[1768315150292,0.09876135,92756.0,92722.0,0.09526735]
[1768315150491,1.6476285,92755.0,92722.0,0.10501065]
[1768315150988,1.5,92755.0,92725.0,0.10606235]
[1768315151189,1.5,92755.0,92737.0,0.010793]
[1768315151390,1.5,92755.0,92738.0,0.0972]
[1768315152783,1.5,92755.0,92739.0,0.010793]
[1768315152985,1.5,92755.0,92738.0,0.0972]
[1768315153199,1.5,92755.0,92738.0,0.107993]
[1768315153500,0.09876135,92776.0,92744.0,0.09526735]
[1768315153791,1.5,92775.0,92762.0,0.010791]
[1768315153996,1.5,92775.0,92754.0,0.09716]
[1768315154187,0.01079,92771.0,92754.0,0.09716]
[1768315154388,0.09876135,92770.0,92737.0,0.09526735]
[1768315154584,0.00947558,92772.0,92732.0,0.0097433]
[1768315154585,0.09876135,92768.0,92733.0,0.010794]
[1768315154789,0.09876135,92764.0,92734.0,0.09716]
[1768315155389,0.09876135,92762.0,92731.0,0.010794]
[1768315155694,0.09876135,92762.0,92727.0,0.09526735]
[1768315155695,0.09876135,92762.0,92738.0,0.010793]
[1768315156001,0.09499101,92763.0,92738.0,0.09716]
[1768315156189,0.09499101,92763.0,92738.0,0.107953]
[1768315156494,0.00993955,92770.0,92738.0,0.107953]
[1768315156495,0.97124,92771.0,92739.0,0.09888068]
[1768315156695,1.5,92775.0,92743.0,0.010793]
[1768315156895,1.5,92775.0,92742.0,0.0091197]
[1768315156896,1.5,92775.0,92747.0,0.09888068]
[1768315157094,1.5,92775.0,92756.0,0.010791]
[1768315157289,1.5,92775.0,92754.0,0.09716]
[1768315158001,1.5,92775.0,92756.0,0.010791]
[1768315158696,1.5,92775.0,92754.0,0.09716]
[1768315159192,0.09499101,92794.0,92758.0,0.09888068]
[1768315159389,0.09499101,92794.0,92763.0,0.09888068]
[1768315159589,0.19836,92804.0,92756.0,0.010791]
[1768315159590,0.09716,92803.0,92768.0,0.09888068]
[1768315159788,0.19215101,92803.0,92774.0,0.010789]
[1768315159992,0.09499101,92802.0,92774.0,0.010789]
[1768315160297,0.09499101,92798.0,92770.0,0.01079]
[1768315160486,0.09499101,92796.0,92769.0,0.09716]
[1768315160684,1.50993955,92801.0,92759.0,0.09888068]
[1768315160685,0.10493056,92793.0,92759.0,0.09888068]
[1768315160897,0.09499101,92779.0,92752.0,0.09716]
[1768315161089,0.09499101,92779.0,92751.0,0.09716]
[1768315161290,0.09499101,92770.0,92738.0,0.10967368]
[1768315161489,0.10578101,92767.0,92740.0,0.010793]
[1768315161691,0.09499101,92767.0,92743.0,0.010793]
[1768315161890,0.09499101,92765.0,92744.0,0.010793]
[1768315162086,0.09712,92769.0,92739.0,0.09712]
[1768315162087,0.09712,92769.0,92747.0,0.010792]
[1768315162287,0.10578101,92767.0,92741.0,0.005793]
[1768315162498,0.10578101,92767.0,92746.0,0.010792]
[1768315162499,0.09499101,92767.0,92746.0,0.010792]
[1768315162696,0.09499101,92767.0,92742.0,0.010793]
[1768315163002,0.09712,92777.0,92746.0,0.09888068]
[1768315163205,0.09499101,92787.0,92759.0,0.09888068]
[1768315163404,0.09499101,92787.0,92761.0,0.010791]
[1768315163601,0.09712,92794.0,92762.0,0.010791]
[1768315163903,0.09499101,92791.0,92768.0,0.01079]
[1768315164104,0.09499101,92791.0,92764.0,0.01079]
[1768315164305,0.09499101,92791.0,92763.0,0.09888068]
[1768315164306,0.010787,92790.0,92765.0,0.01079]
[1768315164500,0.010787,92790.0,92755.0,0.0091197]
[1768315164501,0.09499101,92791.0,92755.0,0.0091197]
[1768315164706,0.09499101,92785.0,92760.0,0.010791]
[1768315164909,0.10577901,92785.0,92760.0,0.010791]
[1768315165107,0.09499101,92785.0,92757.0,0.010791]
[1768315165299,0.09499101,92785.0,92744.0,0.11690387]
[1768315165300,0.09499101,92780.0,92762.0,0.010791]
[1768315165503,0.09712,92783.0,92769.0,0.01079]
[1768315165802,0.09712,92783.0,92764.0,0.01079]
[1768315166199,0.10578001,92780.0,92755.0,0.010791]
[1768315166400,0.10578001,92780.0,92756.0,0.09712]
[1768315166401,0.09499101,92780.0,92756.0,0.09712]
[1768315166702,0.09499101,92780.0,92759.0,0.010791]
[1768315167094,0.09499101,92780.0,92755.0,0.09712]
[1768315167296,0.3886,92823.0,92714.0,0.064779]
[1768315167297,0.010786,92798.0,92763.0,0.10800038]
[1768315167494,0.00993955,92804.0,92780.0,0.010788]
[1768315167495,0.19211101,92802.0,92780.0,0.010788]
[1768315167711,1.5,92801.0,92782.0,0.010788]
[1768315167912,1.5,92801.0,92778.0,0.010789]
[1768315168203,1.5,92801.0,92755.0,0.010791]
[1768315168204,0.10493056,92794.0,92775.0,0.010789]
[1768315168410,0.10493056,92794.0,92766.0,0.09712]
[1768315168598,0.10493056,92789.0,92753.0,0.010792]
[1768315168805,0.10493056,92789.0,92735.0,0.010794]
[1768315168806,0.010788,92786.0,92754.0,0.09712]
[1768315169010,0.09499101,92783.0,92755.0,0.09712]
[1768315169307,0.09712,92789.0,92768.0,0.01079]
[1768315169508,0.09712,92789.0,92764.0,0.01079]
[1768315169509,0.10577901,92788.0,92764.0,0.01079]
[1768315169922,0.09499101,92788.0,92768.0,0.01079]
[1768315170098,0.09499101,92788.0,92767.0,0.01079]
[1768315170294,0.09712,92789.0,92760.0,0.0091197]
[1768315170498,0.09499101,92798.0,92760.0,0.0091197]
[1768315170499,0.09712,92792.0,92764.0,0.09888068]
[1768315170699,0.09499101,92798.0,92764.0,0.09888068]
[1768315170700,0.09499101,92798.0,92777.0,0.010789]
[1768315170896,0.09712,92794.0,92771.0,0.010789]
[1768315171106,0.09499101,92793.0,92766.0,0.09712]
[1768315171598,0.09499101,92793.0,92766.0,0.19600068]
[1768315171803,0.00993955,92800.0,92779.0,0.010789]
[1768315171998,0.09712,92800.0,92776.0,0.010789]
[1768315172203,0.09499101,92819.0,92791.0,0.010787]
[1768315172509,0.010785,92814.0,92789.0,0.010787]
[1768315172710,0.09712,92815.0,92780.0,0.19600068]
[1768315172711,1.5,92805.0,92780.0,0.19600068]
[1768315172913,1.5,92805.0,92790.0,0.010787]
[1768315173214,1.5,92805.0,92780.0,0.19600068]
[1768315173215,0.14524573,92800.0,92779.0,0.010789]
[1768315173417,0.24023674,92800.0,92779.0,0.09712]
[1768315173709,0.010787,92797.0,92760.0,0.0091197]
[1768315173908,0.09499101,92796.0,92761.0,0.09712]
[1768315174113,0.010787,92795.0,92771.0,0.010789]
[1768315174309,0.09499101,92796.0,92763.0,0.01079]
[1768315174604,0.09499101,92796.0,92762.0,0.09888068]
[1768315174605,0.09499101,92796.0,92764.0,0.09712]
[1768315174810,0.09712,92802.0,92783.0,0.010788]
[1768315175000,0.09712,92802.0,92782.0,0.010788]
[1768315175205,0.09712,92802.0,92780.0,0.010788]
[1768315175413,0.09712,92802.0,92782.0,0.010788]
[1768315175797,0.010786,92799.0,92776.0,0.010789]
[1768315175999,0.11821854,92798.0,92773.0,0.010789]
[1768315176208,0.11821854,92798.0,92764.0,0.09712]
[1768315176399,0.10743254,92798.0,92764.0,0.09712]
[1768315176604,0.010788,92783.0,92758.0,0.010791]
[1768315176813,0.09712,92802.0,92748.0,0.09919889]
[1768315176814,0.09771166,92779.0,92756.0,0.010791]
[1768315177013,0.09708,92779.0,92764.0,0.01079]
[1768315177212,0.09708,92779.0,92750.0,0.09012381]
[1768315177615,0.09708,92779.0,92770.0,0.01079]
[1768315177804,0.14524573,92800.0,92762.0,0.08112381]
[1768315177805,0.09708,92788.0,92762.0,0.08112381]
[1768315178000,0.09708,92788.0,92761.0,0.09708]
[1768315178001,0.09771166,92787.0,92761.0,0.09708]
[1768315178203,0.09771166,92787.0,92768.0,0.01079]
[1768315178399,0.10680088,92788.0,92761.0,0.010791]
[1768315178400,0.09771166,92784.0,92761.0,0.010791]
[1768315178608,0.09771166,92784.0,92756.0,0.09708]
[1768315179118,0.010789,92780.0,92757.0,0.010791]
[1768315179304,0.09771166,92778.0,92743.0,0.00907508]
[1768315179512,0.09771166,92778.0,92740.0,0.14524573]
[1768315179513,0.14524573,92760.0,92740.0,0.107873]
[1768315179709,0.19479166,92765.0,92740.0,0.09708]
[1768315180015,0.19479166,92765.0,92751.0,0.010792]
[1768315180218,0.19479166,92765.0,92748.0,0.010792]
[1768315180417,0.19479166,92765.0,92753.0,0.010792]
[1768315180616,0.19479166,92765.0,92740.0,0.09708]
[1768315180617,0.1476285,92764.0,92740.0,0.09708]
[1768315181419,0.1476285,92764.0,92752.0,0.010792]
[1768315181609,0.24534016,92764.0,92740.0,0.09708]
[1768315181809,0.09771166,92763.0,92740.0,0.09708]
[1768315182314,0.09771166,92763.0,92746.0,0.010792]
[1768315182817,0.09771166,92763.0,92740.0,0.09708]
[1768315183122,0.09771166,92759.0,92746.0,0.010792]
[1768315183317,0.874,92772.0,92757.0,0.010791]
[1768315183519,0.00972088,92778.0,92755.0,0.010791]
[1768315183705,0.002,92806.0,92768.0,0.14524573]
[1768315184016,0.002,92806.0,92769.0,0.09012381]
[1768315184207,0.97112,92804.0,92769.0,0.09012381]
[1768315184409,0.002,92806.0,92789.0,0.010787]
[1768315184615,0.002,92806.0,92780.0,0.010788]
[1768315184616,0.09708,92804.0,92780.0,0.010788]
[1768315184817,0.107866,92804.0,92778.0,0.010789]
[1768315185119,0.14524573,92790.0,92764.0,0.01079]
[1768315185307,0.09771166,92789.0,92761.0,0.09708]
[1768315185510,0.09771166,92787.0,92756.0,0.09012381]
[1768315185708,0.09771166,92787.0,92761.0,0.010791]
[1768315185905,0.09771166,92787.0,92756.0,0.09012381]
[1768315186207,0.09771166,92787.0,92774.0,0.010789]
[1768315186407,0.09771166,92787.0,92770.0,0.01079]
[1768315186703,0.09708,92786.0,92769.0,0.01079]
[1768315186906,0.09708,92786.0,92758.0,0.09012381]
[1768315187108,0.01079,92763.0,92738.0,0.010793]
[1768315187313,0.01079,92763.0,92733.0,0.09012381]
[1768315187314,0.14524573,92760.0,92733.0,0.09012381]
[1768315187514,0.10850266,92761.0,92733.0,0.09012381]
[1768315187815,0.09771166,92761.0,92733.0,0.09012381]
[1768315188022,0.09708,92763.0,92748.0,0.010792]
[1768315188212,0.010789,92772.0,92747.0,0.010792]
[1768315188413,0.09771166,92771.0,92741.0,0.09012381]
[1768315188616,0.19479166,92771.0,92741.0,0.09012381]
[1768315188914,0.10850166,92769.0,92741.0,0.09012381]
[1768315189229,0.010792,92754.0,92728.0,0.010795]
[1768315189405,0.09771166,92762.0,92728.0,0.09012381]
[1768315189606,0.09771166,92772.0,92747.0,0.010792]
[1768315189912,0.09771166,92772.0,92730.0,0.14524573]
[1768315189913,0.09771166,92772.0,92760.0,0.010791]
[1768315190111,0.012786,92806.0,92758.0,0.010791]
[1768315190112,0.09708,92773.0,92758.0,0.010791]
[1768315190314,0.09771166,92777.0,92742.0,0.09708]
[1768315190512,0.14524573,92780.0,92739.0,0.09012381]
[1768315190513,0.09771166,92775.0,92739.0,0.09012381]
[1768315190711,0.010789,92779.0,92754.0,0.010791]
[1768315191006,0.87428,92798.0,92754.0,0.010791]
[1768315191007,0.09771166,92796.0,92763.0,0.09012381]
[1768315191327,0.09771166,92796.0,92764.0,0.10091381]
[1768315191620,0.09771166,92796.0,92774.0,0.010789]
[1768315191814,0.010787,92793.0,92765.0,0.09712]
[1768315192020,0.010787,92794.0,92770.0,0.01079]
[1768315192429,0.09712,92798.0,92758.0,0.010791]
[1768315192430,0.09771166,92789.0,92758.0,0.010791]
[1768315192722,0.09771166,92789.0,92758.0,0.09712]
[1768315193517,0.002,92806.0,92782.0,0.010788]
[1768315193820,0.002,92806.0,92759.0,0.1077894]
[1768315193821,0.010786,92803.0,92780.0,0.010788]
[1768315194015,0.012785,92806.0,92774.0,0.09712]
[1768315194211,0.010787,92795.0,92759.0,0.1077894]
[1768315194407,0.010787,92789.0,92766.0,0.01079]
[1768315194616,0.010787,92789.0,92765.0,0.01079]
[1768315194916,0.09712,92795.0,92763.0,0.01079]
[1768315195112,0.09712,92795.0,92760.0,0.09712]
[1768315195113,0.010788,92786.0,92760.0,0.09712]
[1768315195312,0.14524573,92790.0,92760.0,0.09712]
[1768315195513,0.09712,92795.0,92756.0,0.010791]
[1768315195514,0.14524573,92780.0,92756.0,0.010791]
[1768315195723,0.09708,92779.0,92756.0,0.010791]
[1768315195924,0.09708,92779.0,92761.0,0.010791]
[1768315196123,0.09708,92779.0,92751.0,0.09708]
[1768315196717,0.09708,92779.0,92744.0,0.09012381]
[1768315196718,0.01079,92770.0,92744.0,0.09012381]
[1768315196919,0.01079,92770.0,92720.0,0.010795]
[1768315196920,0.09558123,92769.0,92733.0,0.09012381]
[1768315197119,0.09708,92768.0,92735.0,0.09012381]
[1768315197321,0.09632532,92764.0,92735.0,0.09012381]
[1768315197625,0.09632532,92759.0,92725.0,0.09020694]
[1768315198323,0.09632532,92759.0,92736.0,0.010793]
[1768315198511,0.010788,92784.0,92749.0,0.14524573]
[1768315198720,0.010788,92784.0,92736.0,0.00907508]
[1768315198721,0.01079,92771.0,92744.0,0.09012381]
[1768315198914,0.19340532,92783.0,92744.0,0.09012381]
[1768315198915,0.09708,92770.0,92759.0,0.010791]
[1768315199221,0.09632532,92783.0,92745.0,0.010792]
[1768315199222,0.09708,92772.0,92765.0,0.01079]
[1768315199419,0.38844,92807.0,92747.0,0.00907508]
[1768315199420,0.09610304,92794.0,92771.0,0.010789]
[1768315199617,0.09708,92793.0,92773.0,0.010789]
[1768315200013,0.09708,92793.0,92775.0,0.010789]
[1768315200215,0.09708,92793.0,92778.0,0.010789]
[1768315200424,0.09708,92793.0,92764.0,0.01079]
[1768315200425,0.14524573,92790.0,92764.0,0.09012381]
[1768315200617,0.14524573,92790.0,92752.0,0.09012381]
[1768315200815,0.09708,92793.0,92761.0,0.09012381]
[1768315201122,0.09708,92793.0,92753.0,0.010792]
[1768315201123,0.09708,92793.0,92774.0,0.010789]
[1768315201321,0.09712,92803.0,92779.0,0.09012381]
[1768315201512,0.09712,92803.0,92781.0,0.09012381]
[1768315202625,0.09712,92803.0,92785.0,0.010788]
[1768315202820,0.09712,92803.0,92781.0,0.08472617]
[1768315203024,0.107906,92803.0,92781.0,0.08472617]
[1768315203425,0.107906,92803.0,92789.0,0.010787]
[1768315203426,0.09712,92803.0,92789.0,0.010787]
[1768315203727,0.09712,92803.0,92785.0,0.010788]
[1768315204317,0.09712,92803.0,92781.0,0.08472617]
[1768315204526,0.09712,92803.0,92783.0,0.09012381]
[1768315205028,0.09712,92803.0,92764.0,0.01079]
[1768315205029,0.00937445,92799.0,92763.0,0.09241047]
[1768315205233,0.00937445,92799.0,92752.0,0.13148505]
[1768315205234,0.00986253,92792.0,92752.0,0.22389552]
[1768315205416,0.00986253,92789.0,92753.0,0.09241047]
[1768315205615,0.010789,92775.0,92753.0,0.09241047]
[1768315205817,0.010785,92814.0,92767.0,0.09241047]
[1768315206013,0.09708,92804.0,92771.0,0.09241047]
[1768315206214,0.09708,92804.0,92767.0,0.09708]
[1768315206215,0.09708,92804.0,92774.0,0.09241047]
[1768315206435,0.010786,92801.0,92774.0,0.09241047]